fUST/lending_fUST_20240924
["ID","MTS","AMOUNT","RATE_DAILY","PERIOD"]
[339027464,1727139390310,-500.0,0.00032876,30]
[339027465,1727139390333,-500.0,0.00032876,30]
[339027466,1727139390358,-500.0,0.00032876,30]
[339027467,1727139390383,-475.59453597,0.00032876,30]
[339027468,1727139390407,-500.0,0.00032876,30]
[339027469,1727139390431,-500.0,0.00032876,30]
[339027470,1727139390455,-500.0,0.00032876,30]
[339027471,1727139390478,-500.0,0.00032876,30]
[339027472,1727139390503,-500.0,0.00032876,30]
[339027473,1727139390527,-500.0,0.00032876,30]
[339027474,1727139390551,-500.0,0.00032876,30]
[339027475,1727139390574,-500.0,0.00032876,30]
[339027476,1727139390599,-500.0,0.00032876,30]
[339027477,1727139390622,-500.0,0.00032876,30]
[339027478,1727139390645,-500.0,0.00032876,30]
[339027479,1727139390670,-500.0,0.00032876,30]
[339027480,1727139390694,-500.0,0.00032876,30]
[339027481,1727139390718,-500.0,0.00032876,30]
[339027482,1727139390742,-500.0,0.00032876,30]
[339027483,1727139390765,-500.0,0.00032876,30]
[339027484,1727139390789,-500.0,0.00032876,30]
[339027485,1727139390813,-500.0,0.00032876,30]
[339027486,1727139390836,-500.0,0.00032876,30]
[339027487,1727139390862,-500.0,0.00032876,30]
[339027488,1727139390895,-500.0,0.00032876,30]
[339027489,1727139390918,-500.0,0.00032876,30]
[339027490,1727139390944,-500.0,0.00032876,30]
[339027491,1727139390968,-500.0,0.00032876,30]
[339027492,1727139390991,-500.0,0.00032876,30]
[339027493,1727139391015,-500.0,0.00032876,30]
[339027494,1727139391038,-500.0,0.00032876,10]
[339027495,1727139391062,-201.9909663,0.00032876,30]
[339027496,1727139391087,-500.0,0.00032876,30]
[339027497,1727139391230,-9346.11,0.00032876,18]
[339027498,1727139391257,-500.0,0.00032876,30]
[339027499,1727139391282,-500.0,0.00032876,30]
[339027500,1727139391307,-500.0,0.00032876,30]
[339027501,1727139391333,-500.0,0.00032876,30]
[339027502,1727139391360,-500.0,0.00032876,21]
[339027503,1727139391390,-500.0,0.00032876,30]
[339027504,1727139391415,-500.0,0.00032876,30]
[339027505,1727139391440,-500.0,0.00032876,30]
[339027506,1727139391464,-500.0,0.00032876,30]
[339027507,1727139391497,-500.0,0.00032876,30]
[339027508,1727139391522,-500.0,0.00032876,30]
[339027509,1727139391546,-500.0,0.00032876,30]
[339027510,1727139391570,-500.0,0.00032876,30]
[339027511,1727139391594,-500.0,0.00032876,30]
[339027512,1727139391622,-500.0,0.00032876,30]
[339027513,1727139391646,-500.0,0.00032876,120]
[339027514,1727139391671,-500.0,0.00032876,30]
[339027515,1727139391695,-500.0,0.00032876,30]
[339027516,1727139391721,-500.0,0.00032876,30]
[339027517,1727139391746,-500.0,0.00032876,30]
[339027518,1727139391771,-500.0,0.00032876,30]
[339027519,1727139391795,-500.0,0.00032876,30]
[339027520,1727139391819,-500.0,0.00032876,30]
[339027521,1727139391843,-510.3024606,0.00032876,30]
[339027522,1727139391871,-500.0,0.00032876,30]
[339027523,1727139391897,-500.0,0.00032876,30]
[339027524,1727139391921,-500.0,0.00032876,30]
[339027525,1727139391946,-500.0,0.00032876,30]
[339027526,1727139391970,-500.0,0.00032876,30]
[339027527,1727139391994,-500.0,0.00032876,30]
[339027528,1727139392021,-536.68,0.00032876,30]
[339027529,1727139392044,-500.0,0.00032876,30]
[339027530,1727139392068,-500.0,0.00032876,30]
[339027531,1727139392092,-1000.0,0.000329,16]
[339027532,1727139392121,-196.585212,0.00032903,14]
[339027533,1727139392148,-329.676144,0.00032903,14]
[339027534,1727139392172,-196.585212,0.00032903,14]
[339027535,1727139392197,-196.853235,0.0003291,14]
[339027536,1727139392221,-196.853235,0.0003291,14]
[339027537,1727139392245,-350.0,0.00033,30]
[339027538,1727139392271,-3000.0,0.00033,14]
[339027539,1727139392296,-3000.0,0.0003301,14]
[339027540,1727139392322,-479.80186198,0.00033012,7]
[339027541,1727139392359,-500.0,0.00033012,30]
[339027542,1727139392392,-500.0,0.00033012,30]
[339027543,1727139392417,-500.0,0.00033012,30]
[339027544,1727139392444,-500.0,0.00033013,30]
[339027545,1727139392470,-500.0,0.00033013,30]
[339027546,1727139392495,-500.0,0.00033013,30]
[339027547,1727139392520,-500.0,0.00033013,30]
[339027548,1727139392545,-500.0,0.00033013,30]
[339027549,1727139392570,-500.0,0.00033013,30]
[339027550,1727139392595,-500.0,0.00033013,30]
[339027551,1727139392623,-500.0,0.00033013,30]
[339027552,1727139392649,-619.54610593,0.00033013,30]
[339027553,1727139392674,-500.0,0.00033013,30]
[339027554,1727139392700,-500.0,0.00033013,30]
[339027555,1727139392725,-500.0,0.00033013,30]
[339027556,1727139392752,-500.0,0.00033013,30]
[339027557,1727139392778,-500.0,0.00033013,30]
[339027558,1727139392804,-500.0,0.00033013,30]
[339027559,1727139392829,-500.0,0.00033013,30]
[339027560,1727139392855,-507.46797719,0.00033013,30]
[339027561,1727139392881,-185.58307709,0.00033013,30]
[339027562,1727139392911,-176.59753781,0.00033013,30]
[339027563,1727139392937,-500.0,0.00033013,30]
[339027564,1727139392962,-500.0,0.00033013,30]
[339027565,1727139392987,-500.0,0.00033013,30]
[339027566,1727139393011,-500.0,0.00033013,30]
[339027567,1727139393038,-500.0,0.00033013,30]
[339027568,1727139393068,-2033.795754,0.00033013,14]
[339027569,1727139393095,-554.93,0.00033013,30]
[339027570,1727139393125,-500.0,0.00033013,30]
[339027571,1727139393152,-500.0,0.00033013,30]
[339027572,1727139393178,-2033.795754,0.00033013,14]
[339027573,1727139393204,-500.0,0.00033013,30]
[339027574,1727139393229,-500.0,0.00033013,30]
[339027575,1727139393255,-500.0,0.00033013,30]
[339027576,1727139393281,-500.0,0.00033013,30]
[339027577,1727139393307,-151.0,0.00033013,14]
[339027578,1727139393335,-228.671585,0.00033013,14]
[339027579,1727139393367,-500.0,0.00033013,30]
[339027580,1727139393393,-500.0,0.00033013,30]
[339027581,1727139393418,-228.671585,0.00033013,14]
[339027582,1727139393444,-283.900928,0.00033013,14]
[339027583,1727139393470,-500.0,0.00033013,30]
[339027584,1727139393498,-283.900928,0.00033013,14]
[339027585,1727139393523,-541.03,0.00033013,25]
[339027586,1727139393549,-500.0,0.00033013,30]
[339027587,1727139393579,-500.0,0.00033013,30]
[339027588,1727139393605,-505.22680742,0.00033013,30]
[339027589,1727139393632,-500.0,0.00033013,30]
[339027590,1727139393658,-151.0,0.00033013,14]
[339027591,1727139393685,-500.0,0.00033013,30]
[339027592,1727139393712,-500.0,0.00033013,30]
[339027593,1727139393739,-500.0,0.00033013,30]
[339027594,1727139393765,-151.0,0.00033013,14]
[339027595,1727139393790,-500.0,0.00033013,30]
[339027596,1727139393815,-151.0,0.00033013,14]
[339027597,1727139393841,-453.48,0.00033013,30]
[339027598,1727139393867,-151.0,0.00033013,14]
[339027599,1727139393894,-601.82720782,0.00033013,30]
[339027600,1727139393920,-500.0,0.00033013,30]
[339027601,1727139393945,-500.0,0.00033013,30]
[339027602,1727139394119,-500.0,0.00033013,30]
[339027603,1727139394145,-500.0,0.00033013,30]
[339027604,1727139394170,-500.0,0.00033013,30]
[339027605,1727139394196,-500.0,0.00033013,30]
[339027606,1727139394220,-196.853235,0.00033013,14]
[339027607,1727139394245,-500.0,0.00033013,30]
[339027608,1727139394269,-196.853235,0.00033013,14]
[339027609,1727139394294,-1000.0,0.00033013,120]
[339027610,1727139394319,-196.585212,0.00033013,14]
[339027611,1727139394343,-500.0,0.00033013,30]
[339027612,1727139394369,-329.676144,0.00033013,14]
[339027613,1727139394393,-196.585212,0.00033013,14]
[339027614,1727139394418,-412.62,0.00033013,30]
[339027615,1727139394443,-315.30015793,0.00033013,30]
[339027616,1727139394470,-500.0,0.00033013,30]
[339027617,1727139394495,-500.0,0.00033013,30]
[339027618,1727139394523,-500.0,0.00033013,30]
[339027619,1727139394549,-500.0,0.00033013,30]
[339027620,1727139394575,-595.77,0.00033013,30]
[339027621,1727139394601,-500.0,0.00033013,30]
[339027622,1727139394629,-500.0,0.00033013,30]
[339027623,1727139394660,-9346.11,0.00033013,18]
[339027624,1727139394688,-500.0,0.00033013,21]
[339027625,1727139394716,-500.0,0.00033013,30]
[339027626,1727139394743,-500.0,0.00033013,120]
[339027627,1727139394768,-500.0,0.00033013,30]
[339027628,1727139394794,-500.0,0.00033013,30]
[339027629,1727139394819,-216.35278142,0.00033013,30]
[339027630,1727139394845,-215.448766,0.0003302,14]
[339027631,1727139394871,-151.0,0.0003302,14]
[339027632,1727139394900,-151.0,0.0003302,14]
[339027633,1727139394925,-151.0,0.0003302,14]
[339027634,1727139394951,-151.0,0.0003302,14]
[339027635,1727139394977,-196.853235,0.0003302,14]
[339027636,1727139395004,-196.853235,0.0003302,14]
[339027637,1727139395028,-196.585212,0.0003302,14]
[339027638,1727139395053,-329.676144,0.0003302,14]
[339027639,1727139395078,-196.585212,0.0003302,14]
[339027640,1727139395103,-3000.0,0.0003302,14]
[339027641,1727139395128,-2033.795754,0.0003303,14]
[339027642,1727139395153,-2033.795754,0.0003303,14]
[339027643,1727139395179,-228.671585,0.0003303,14]
[339027644,1727139395204,-228.671585,0.0003303,14]
[339027645,1727139395228,-283.900928,0.0003303,14]
[339027646,1727139395252,-283.900928,0.0003303,14]
[339027647,1727139395277,-151.0,0.0003303,14]
[339027648,1727139395302,-151.0,0.0003303,14]
[339027649,1727139395327,-151.0,0.0003303,14]
[339027650,1727139395353,-3000.0,0.0003303,14]
[339027651,1727139395378,-151.0,0.0003304,14]
[339027652,1727139395403,-151.0,0.0003304,14]
[339027653,1727139395427,-151.0,0.0003304,14]
[339027654,1727139395452,-151.0,0.0003304,14]
[339027655,1727139395476,-151.0,0.0003304,14]
[339027656,1727139395503,-151.0,0.0003304,14]
[339027657,1727139395527,-245.837384,0.0003304,14]
[339027658,1727139395551,-3000.0,0.0003304,14]
[339027659,1727139395576,-151.0,0.0003305,7]
[339027660,1727139395600,-151.0,0.0003305,14]
[339027661,1727139395625,-151.0,0.0003305,14]
[339027662,1727139395650,-3000.0,0.0003305,14]
[339027663,1727139395676,-3000.0,0.0003306,14]
[339027664,1727139395700,-151.0,0.00033062,14]
[339027665,1727139395724,-182.111929,0.00033062,14]
[339027666,1727139395747,-292.169467,0.00033062,14]
[339027667,1727139395771,-151.0,0.00033062,14]
[339027668,1727139395797,-2033.795754,0.00033062,14]
[339027669,1727139395820,-2033.795754,0.00033062,14]
[339027670,1727139395845,-228.671585,0.00033062,14]
[339027671,1727139395869,-228.671585,0.00033062,14]
[339027672,1727139395896,-283.900928,0.00033062,14]
[339027673,1727139395920,-283.900928,0.00033062,14]
[339027674,1727139395946,-151.0,0.00033062,14]
[339027675,1727139395972,-255.606918,0.00033062,14]
[339027676,1727139395997,-151.0,0.00033062,14]
[339027677,1727139396023,-3000.0,0.0003307,14]
[339027678,1727139396048,-3000.0,0.0003308,14]
[339027679,1727139396073,-151.0,0.0003309,14]
[339027680,1727139396097,-151.0,0.0003309,14]
[339027681,1727139396122,-151.0,0.0003309,14]
[339027682,1727139396147,-151.0,0.0003309,14]
[339027683,1727139396171,-151.0,0.0003309,14]
[339027684,1727139396196,-196.585212,0.0003309,14]
[339027685,1727139396220,-329.676144,0.0003309,14]
[339027686,1727139396244,-196.585212,0.0003309,14]
[339027687,1727139396269,-3000.0,0.0003309,14]
[339027688,1727139396293,-151.0,0.000331,7]
[339027689,1727139396318,-150.112234,0.000331,7]
[339027690,1727139396342,-151.0,0.000331,14]
[339027691,1727139396366,-151.0,0.000331,14]
[339027692,1727139396391,-2033.795754,0.000331,14]
[339027693,1727139396415,-2033.795754,0.000331,14]
[339027694,1727139396440,-228.671585,0.000331,14]
[339027695,1727139396465,-228.671585,0.000331,14]
[339027696,1727139396489,-283.900928,0.000331,14]
[339027697,1727139396512,-283.900928,0.000331,14]
[339027698,1727139396537,-151.0,0.000331,14]
[339027699,1727139396562,-151.0,0.000331,14]
[339027700,1727139396586,-151.0,0.000331,14]
[339027701,1727139396611,-196.853235,0.000331,14]
[339027702,1727139396636,-196.853235,0.000331,14]
[339027703,1727139396661,-3000.0,0.000331,14]
[339027704,1727139396686,-247.998894,0.0003311,14]
[339027705,1727139396716,-3000.0,0.0003311,14]
[339027706,1727139396846,-3000.0,0.0003312,14]
[339027707,1727139396875,-3000.0,0.0003313,14]
[339027708,1727139396902,-548.405761,0.0003313,14]
[339027709,1727139396926,-548.405761,0.0003313,14]
[339027710,1727139396953,-208.390598,0.0003313,14]
[339027711,1727139396979,-151.0,0.0003313,14]
[339027712,1727139397004,-208.390598,0.0003313,14]
[339027713,1727139397028,-151.0,0.0003313,14]
[339027714,1727139397052,-151.0,0.0003313,14]
[339027715,1727139397078,-151.0,0.0003313,14]
[339027716,1727139397104,-2033.795754,0.0003314,14]
[339027717,1727139397131,-2033.795754,0.0003314,14]
[339027718,1727139397156,-228.671585,0.0003314,14]
[339027719,1727139397181,-228.671585,0.0003314,14]
[339027720,1727139397204,-283.900928,0.0003314,14]
[339027721,1727139397228,-283.900928,0.0003314,14]
[339027722,1727139397252,-151.0,0.0003314,14]
[339027723,1727139397277,-151.0,0.0003314,14]
[339027724,1727139397302,-196.585212,0.0003314,14]
[339027725,1727139397328,-329.676144,0.0003314,14]
[339027726,1727139397352,-196.585212,0.0003314,14]
[339027727,1727139397379,-3000.0,0.0003314,14]
[339027728,1727139397403,-151.0,0.0003314,14]
[339027729,1727139397428,-151.0,0.0003314,14]
[339027730,1727139397451,-446.184492,0.0003314,14]
[339027731,1727139397475,-446.184492,0.0003314,14]
[339027732,1727139397499,-151.0,0.0003314,14]
[339027733,1727139397523,-151.0,0.0003314,14]
[339027734,1727139397547,-151.0,0.0003314,14]
[339027735,1727139397571,-151.0,0.0003314,14]
[339027736,1727139397596,-151.0,0.0003314,14]
[339027737,1727139397623,-548.405761,0.0003314,14]
[339027738,1727139397656,-548.405761,0.0003314,14]
[339027739,1727139397680,-208.390598,0.0003314,14]
[339027740,1727139397703,-151.0,0.0003314,14]
[339027741,1727139397727,-208.390598,0.0003314,14]
[339027742,1727139397752,-151.0,0.0003314,14]
[339027743,1727139397775,-151.0,0.0003315,7]
[339027744,1727139397798,-296.484245,0.0003315,14]
[339027745,1727139397821,-151.0,0.0003315,14]
[339027746,1727139397845,-259.924784,0.0003315,14]
[339027747,1727139397869,-151.0,0.0003315,14]
[339027748,1727139397897,-244.376598,0.0003315,14]
[339027749,1727139397921,-151.0,0.0003315,14]
[339027750,1727139397946,-500.0,0.0003315,30]
[339027751,1727139397970,-500.0,0.0003315,7]
[339027752,1727139397994,-373.27,0.0003315,30]
[339027753,1727139398017,-500.0,0.0003315,30]
[339027754,1727139398041,-500.0,0.0003315,30]
[339027755,1727139398064,-500.0,0.0003315,30]
[339027756,1727139398087,-500.0,0.0003315,30]
[339027757,1727139398111,-500.0,0.0003315,30]
[339027758,1727139398134,-500.0,0.0003315,7]
[339027759,1727139398158,-500.0,0.0003315,30]
[339027760,1727139398181,-500.0,0.0003315,30]
[339027761,1727139398204,-230.88,0.0003315,30]
[339027762,1727139398228,-500.0,0.0003315,30]
[339027763,1727139398251,-500.0,0.0003315,30]
[339027764,1727139398275,-500.0,0.0003315,30]
[339027765,1727139398299,-500.0,0.0003315,30]
[339027766,1727139398324,-200.0,0.0003315,7]
[339027767,1727139398348,-500.0,0.0003315,30]
[339027768,1727139398370,-500.0,0.0003315,30]
[339027769,1727139398394,-500.0,0.0003315,30]
[339027770,1727139398418,-233.8567609,0.0003315,30]
[339027771,1727139398441,-500.0,0.0003315,30]
[339027772,1727139398465,-500.0,0.0003315,30]
[339027773,1727139398488,-500.0,0.0003315,30]
[339027774,1727139398512,-500.0,0.0003315,30]
[339027775,1727139398535,-500.0,0.0003315,30]
[339027776,1727139398560,-500.0,0.0003315,30]
[339027777,1727139398586,-339.55691879,0.0003315,30]
[339027778,1727139398611,-500.0,0.0003315,30]
[339027779,1727139398635,-500.0,0.0003315,30]
[339027780,1727139398660,-500.0,0.0003315,30]
[339027781,1727139398685,-554.93,0.0003315,30]
[339027782,1727139398710,-2033.795754,0.0003315,14]
[339027783,1727139398735,-500.0,0.0003315,30]
[339027784,1727139398759,-2033.795754,0.0003315,14]
[339027785,1727139398784,-500.0,0.0003315,30]
[339027786,1727139398807,-500.0,0.0003315,30]
[339027787,1727139398831,-228.671585,0.0003315,14]
[339027788,1727139398855,-500.0,0.0003315,30]
[339027789,1727139398880,-228.671585,0.0003315,14]
[339027790,1727139398904,-283.900928,0.0003315,14]
[339027791,1727139398928,-283.900928,0.0003315,14]
[339027792,1727139398952,-505.07706924,0.0003315,30]
[339027793,1727139398976,-500.0,0.0003315,30]
[339027794,1727139399000,-151.0,0.0003315,14]
[339027795,1727139399025,-151.0,0.0003315,14]
[339027796,1727139399048,-151.0,0.0003315,14]
[339027797,1727139399072,-500.0,0.0003315,30]
[339027798,1727139399097,-500.0,0.0003315,30]
[339027799,1727139399121,-500.0,0.0003315,30]
[339027800,1727139399146,-196.853235,0.0003315,14]
[339027801,1727139399169,-500.0,0.0003315,30]
[339027802,1727139399193,-196.853235,0.0003315,14]
[339027803,1727139399219,-500.0,0.0003315,30]
[339027804,1727139399243,-500.0,0.0003315,30]
[339027805,1727139399267,-3000.0,0.0003315,14]
[339027806,1727139399293,-243.05,0.0003315,30]
[339027807,1727139399317,-151.0,0.0003315,14]
[339027808,1727139399342,-500.0,0.0003315,30]
[339027809,1727139399477,-9346.11,0.0003315,18]
[339027810,1727139399501,-151.0,0.0003315,14]
[339027811,1727139399526,-446.184492,0.0003315,14]
[339027812,1727139399550,-446.184492,0.0003315,14]
[339027813,1727139399575,-151.0,0.0003315,14]
[339027814,1727139399600,-500.0,0.0003315,21]
[339027815,1727139399632,-151.0,0.0003315,14]
[339027816,1727139399657,-194.526018,0.0003315,14]
[339027817,1727139399684,-151.0,0.0003315,14]
[339027818,1727139399708,-151.0,0.0003315,14]
[339027819,1727139399732,-500.0,0.0003315,30]
[339027820,1727139399757,-269.09,0.0003315,30]
[339027821,1727139399781,-151.0,0.0003316,14]
[339027822,1727139399805,-151.0,0.0003316,14]
[339027823,1727139399830,-151.0,0.0003316,14]
[339027824,1727139399854,-151.0,0.0003316,14]
[339027825,1727139399878,-151.0,0.0003316,14]
[339027826,1727139399907,-3000.0,0.0003316,14]
[339027827,1727139399932,-3000.0,0.0003317,14]
[339027828,1727139399958,-3000.0,0.0003318,15]
[339027829,1727139399985,-196.585212,0.0003319,14]
[339027830,1727139400009,-329.676144,0.0003319,14]
[339027831,1727139400033,-196.585212,0.0003319,14]
[339027832,1727139400059,-3000.0,0.0003319,15]
[339027833,1727139400085,-3000.0,0.000332,15]
[339027834,1727139400110,-151.0,0.0003321,14]
[339027835,1727139400135,-151.0,0.0003321,14]
[339027836,1727139400159,-173.5811,0.0003321,14]
[339027837,1727139400184,-3000.0,0.0003321,15]
[339027838,1727139400208,-548.405761,0.0003321,14]
[339027839,1727139400233,-548.405761,0.0003321,14]
[339027840,1727139400258,-208.390598,0.0003321,14]
[339027841,1727139400282,-151.0,0.0003321,14]
[339027842,1727139400306,-208.390598,0.0003321,14]
[339027843,1727139400330,-151.0,0.0003321,14]
[339027844,1727139400355,-3000.0,0.0003322,15]
[339027845,1727139400380,-3000.0,0.0003323,15]
[339027846,1727139400406,-3000.0,0.0003324,15]
[339027847,1727139400431,-3000.0,0.0003325,15]
[339027848,1727139400457,-2033.795754,0.0003326,14]
[339027849,1727139400482,-2033.795754,0.0003326,14]
[339027850,1727139400508,-228.671585,0.0003326,14]
[339027851,1727139400533,-228.671585,0.0003326,14]
[339027852,1727139400559,-151.0,0.0003326,14]
[339027853,1727139400584,-283.900928,0.0003326,14]
[339027854,1727139400609,-283.900928,0.0003326,14]
[339027855,1727139400636,-151.0,0.0003326,14]
[339027856,1727139400662,-151.0,0.0003326,14]
[339027857,1727139400688,-151.0,0.0003326,14]
[339027858,1727139400713,-196.853235,0.0003326,14]
[339027859,1727139400744,-196.853235,0.0003326,14]
[339027860,1727139400779,-3000.0,0.0003326,15]
[339027861,1727139400810,-151.0,0.0003327,14]
[339027862,1727139400840,-151.0,0.0003327,14]
[339027863,1727139400874,-3000.0,0.0003327,15]
[339027864,1727139400908,-151.0,0.00033277,14]
[339027865,1727139400941,-151.0,0.00033277,14]
[339027866,1727139400973,-446.184492,0.00033277,14]
[339027867,1727139401004,-446.184492,0.00033277,14]
[339027868,1727139401036,-151.0,0.00033277,14]
[339027869,1727139401066,-151.0,0.00033277,14]
[339027870,1727139401097,-151.0,0.00033277,14]
[339027871,1727139401131,-548.405761,0.00033277,14]
[339027872,1727139401161,-548.405761,0.00033277,14]
[339027873,1727139401197,-208.390598,0.00033277,14]
[339027874,1727139401226,-208.390598,0.00033277,14]
[339027875,1727139401256,-156.028748,0.00033277,14]
[339027876,1727139401287,-3000.0,0.0003328,15]
[339027877,1727139401317,-151.0,0.00033287,7]
[339027878,1727139401351,-500.0,0.00033287,30]
[339027879,1727139401384,-500.0,0.00033287,7]
[339027880,1727139401414,-373.27,0.00033287,30]
[339027881,1727139401441,-500.0,0.00033287,30]
[339027882,1727139401469,-500.0,0.00033287,30]
[339027883,1727139401501,-500.0,0.00033287,30]
[339027884,1727139401532,-500.0,0.00033287,30]
[339027885,1727139401559,-412.65,0.00033287,7]
[339027886,1727139401590,-500.0,0.00033287,30]
[339027887,1727139401619,-500.0,0.00033287,30]
[339027888,1727139401668,-500.0,0.00033287,30]
[339027889,1727139401697,-500.0,0.00033287,30]
[339027890,1727139401725,-200.0,0.00033287,7]
[339027891,1727139401752,-500.0,0.00033287,30]
[339027892,1727139401781,-500.0,0.00033287,30]
[339027893,1727139401809,-500.0,0.00033287,30]
[339027894,1727139401837,-645.73312357,0.00033287,30]
[339027895,1727139401866,-500.0,0.00033287,30]
[339027896,1727139401898,-500.0,0.00033287,30]
[339027897,1727139401927,-554.93,0.00033287,30]
[339027898,1727139401955,-2033.795754,0.00033287,14]
[339027899,1727139401983,-500.0,0.00033287,30]
[339027900,1727139402013,-2033.795748,0.00033287,14]
[339027901,1727139402042,-500.0,0.00033287,30]
[339027902,1727139402071,-228.671585,0.00033287,14]
[339027903,1727139402101,-506.36725357,0.00033287,30]
[339027904,1727139402138,-228.671585,0.00033287,14]
[339027905,1727139402167,-217.704067,0.00033287,14]
[339027906,1727139402195,-283.900928,0.00033287,14]
[339027907,1727139402223,-283.900921,0.00033287,14]
[339027908,1727139402402,-151.0,0.00033287,14]
[339027909,1727139402428,-151.0,0.00033287,14]
[339027910,1727139402454,-305.10367557,0.00033287,30]
[339027911,1727139402480,-500.0,0.00033287,30]
[339027912,1727139402505,-605.82492604,0.00033287,30]
[339027913,1727139402531,-196.585212,0.00033287,14]
[339027914,1727139402557,-329.676144,0.00033287,14]
[339027915,1727139402582,-196.585212,0.00033287,14]
[339027916,1727139402607,-151.0,0.00033287,14]
[339027917,1727139402636,-151.0,0.00033287,14]
[339027918,1727139402662,-151.0,0.00033287,14]
[339027919,1727139402687,-151.0,0.00033287,14]
[339027920,1727139402712,-151.0,0.00033287,14]
[339027921,1727139402739,-500.0,0.00033287,30]
[339027922,1727139402764,-500.0,0.00033287,30]
[339027923,1727139402788,-151.0,0.00033287,14]
[339027924,1727139402813,-151.0,0.00033287,14]
[339027925,1727139402838,-539.696006,0.00033287,14]
[339027926,1727139402862,-539.696006,0.00033287,14]
[339027927,1727139402891,-9346.11,0.00033287,18]
[339027928,1727139402920,-151.0,0.00033287,14]
[339027929,1727139402945,-446.184492,0.00033287,14]
[339027930,1727139402976,-446.184492,0.00033287,14]
[339027931,1727139403002,-500.0,0.00033287,21]
[339027932,1727139403027,-272.542522,0.00033287,14]
[339027933,1727139403053,-151.0,0.00033287,14]
[339027934,1727139403081,-151.0,0.00033287,14]
[339027935,1727139403106,-251.87,0.00033287,30]
[339027936,1727139403134,-3000.0,0.0003329,15]
[339027937,1727139403158,-309.23,0.000333,14]
[339027938,1727139403183,-151.0,0.000333,14]
[339027939,1727139403208,-151.0,0.000333,14]
[339027940,1727139403233,-151.0,0.000333,14]
[339027941,1727139403259,-3000.0,0.000333,15]
[339027942,1727139403284,-3000.0,0.0003331,15]
[339027943,1727139403310,-3000.0,0.0003332,15]
[339027944,1727139403336,-151.0,0.0003333,14]
[339027945,1727139403361,-196.853235,0.0003333,14]
[339027946,1727139403387,-196.853235,0.0003333,14]
[339027947,1727139403413,-3000.0,0.0003333,15]
[339027948,1727139403439,-3000.0,0.0003334,15]
[339027949,1727139403464,-3000.0,0.0003335,15]
[339027950,1727139403489,-3000.0,0.0003336,15]
[339027951,1727139403515,-5112.296878,0.0003337,15]
[339027952,1727139403541,-548.405761,0.0003337,14]
[339027953,1727139403567,-548.405761,0.0003337,14]
[339027954,1727139403593,-208.390598,0.0003337,14]
[339027955,1727139403619,-208.390598,0.0003337,14]
[339027956,1727139403648,-151.0,0.0003338,14]
[339027957,1727139403673,-446.184492,0.0003338,14]
[339027958,1727139403699,-446.184492,0.0003338,14]
[339027959,1727139403725,-151.0,0.0003338,14]
[339027960,1727139403750,-151.0,0.0003338,14]
[339027961,1727139403776,-548.405761,0.0003338,14]
[339027962,1727139403804,-341.55053481,0.0003338,15]
[339027963,1727139403828,-548.405761,0.0003338,14]